{"text_format":"2","workbook":"xlsx","n_sheets":3,"sheets":["Tabelle1","Tabelle2","Tabelle3"],"not_rendered":{"charts":0,"images":1,"macros":0,"external_links":0,"defined_names":2,"comments":0,"pivot_tables":0},"unopened":[],"bounds":{"document_bytes":16777216,"sheet_cells":100000,"run_cost":"one","rows_first":2000,"rows_last":500,"rows_between":2000,"halvings":0,"cell_chars":16384,"cell_head_chars":4096},"cells_cut":0,"cells_raw":0,"read":"whole","date_system":"1900"}

{"sheet":"Tabelle1","index":0,"n_rows":79,"n_cols":4,"rows_kept":79,"cut":false,"hidden":false,"merged":[[5,1,5,2],[6,1,6,2]]}
["Basler Hockey Club"]
["Meldeblatt Helfer-Punktesystem"]
[]
[]
["Vereinsjahr:","2022/2023"]
["Name:"]
["Vorname:"]
["Kategorie:","Aktive"]
["Kader SLHV:","Nein","(Zugehörigkeit Nationalmannschaft)"]
["Anz. Punkte",{"$f":"VLOOKUP($B$9,$A$78:$B$79,2,0)","v":75},"(Zu leistende Punktzahl pro Vereinsjahr)"]
[]
["Protokoll der Einsätze"]
["Datum","Art des Einsatzes","Zusatzbeschreibung","Punkte"]
[null,0,null,{"$f":"VLOOKUP(B14,$A$48:$B$66,2,0)","v":0}]
[null,0,null,0]
[null,0,null,0]
[null,0,null,0]
[null,0,null,0]
[null,0,null,0]
[null,0,null,0]
[null,0,null,0]
[null,0,null,0]
[null,0,null,0]
[null,0,null,0]
[null,0,null,0]
[null,0,null,0]
[null,0,null,0]
[null,0,null,0]
[null,0,null,0]
[null,0,null,0]
[null,0,null,0]
[null,0,null,0]
[null,0,null,0]
[null,0,null,0]
[null,0,null,0]
[null,0,null,0]
[null,0,null,0]
["Total Punkte",null,null,{"$f":"SUM($D$14:$D$37)","v":0}]
["Differenz (fehlende Punkte)",null,null,{"$f":"$B$10-$D$38","v":75}]
["Betrag in CHF zu Gunsten BHC",null,null,{"$f":"IF($D$41<0,0,$D$41)","v":225}]
[null,null,null,{"$f":"VLOOKUP($B$8,$A$71:$B$74,2,0)*$D$39","v":225}]
["Bitte jeweils auf Ende des Vereinsjahres an sekretariat@bhc.ch mailen"]
["gemäss Beschluss Generalversammlung vom 22.05.2013"]
["(Ende Vereinsjahr Juli 2014, 2015, 2016, usw…)"]
[]
["Legende Einsatz: "]
["Art des Einsatzes","Punkte","Anlass / Einsatz","Anzahl / Dauer"]
[0,0,"Leer","leer"]
[1,15,"Schiedsrichtereinsatz  Einzelspiel zuhause                                  (Neu muss zwischen Punkten oder einer Entschädigung entschieden werden.)","pro Spiel"]
[2,25,"Schiedsrichtereinsatz Einzelspiel auswärts                                (Neu muss zwischen Punkte oder einer Entschädigung entschieden werden.)","pro Spiel"]
[3,35,"Schiedsrichtereinsatz Turnier                                                       (Neu muss zwischen Punkten oder einer Entschädigung entschieden werden.)","pro Turnier"]
[4,75,"Teammanagerfunktion","Vereinsjahr"]
[5,25,"Coaching-Einsatz Heimspiel","pro Spiel"]
[6,35,"Coaching-Einsatz Auswärtsspiel","pro Spiel"]
[7,75,"Regelmässiger Einsatz als Trainerassistent ","Vereinsjahr"]
[8,25,"Einsätze in den Jugendförderprojekten","pro 1/2 Tag"]
[9,75,"Durchführung Kurs freiwilliger Schulsport","pro Kurs"]
[10,25,"Mithilfe beim Kurs freiwilliger Schulsport ","pro 1/2 Tag"]
[11,10,"Mithilfe an externen Anlässen ","pro Stunde"]
[12,75,"OK-Mitglied clubeigenen Anlasses ","pro Anlass"]
[13,75,"Redaktionsteam Vereinsnews","Vereinsjahr"]
[14,10,"Mithilfe an clubeigenen Anlässen (z.B. Küche / Grill)","pro Stunde"]
[15,15,"Mitarbeit in einem Vorstandsressort nach Absprache mit VS","pro Aufgabe"]
[16,25,"Mitarbeit in einem Vorstandsressort nach Absprache mit VS","pro Aufgabe"]
[17,50,"Mitarbeit in einem Vorstandsressort nach Absprache mit VS","pro Aufgabe"]
[18,75,"Mitarbeit in einem Vorstandsressort nach Absprache mit VS","pro Aufgabe"]
[]
["Beitragstabelle"]
["Punkte","Betrag zu Gunsten BHC","Kategorien"]
["Alle",0,"75 Punkte und mehr"]
["Aktive",3,"CHF pro fehlender Punkt"]
["Senioren",3,"CHF pro fehlender Punkt"]
["Lehrlinge / Studenten",2,"CHF pro fehlender Punkt"]
["Junioren U18",1,"CHF pro fehlender Punkt"]
[]
["Punkteberechnung"]
["Kader NM","Punkte"]
["Ja",40]
["Nein",75]

{"sheet":"Tabelle2","index":1,"n_rows":0,"n_cols":0,"rows_kept":0,"cut":false,"hidden":false,"merged":[]}

{"sheet":"Tabelle3","index":2,"n_rows":0,"n_cols":0,"rows_kept":0,"cut":false,"hidden":false,"merged":[]}